[Event "*** Titled Tuesday 3|2 Blitz"]
[Site "Chess.com"]
[Date "2016.04.05"]
[Round "1"]
[White "Goala"]
[Black "GulamaliRises"]
[Result "0-1"]
[WhiteElo "2239"]
[BlackElo "2551"]
[TimeControl "180+2"]
[EndTime "11:42:30 PDT"]
[Termination "GulamaliRises won on time"]

1. d4 {[%clk 0:03:01.9]} 1... e6 {[%clk 0:02:51.6]} 2. c4 {[%clk 0:03:02]} 2...
c5 {[%clk 0:02:52.3]} 3. d5 {[%clk 0:03:02.8]} 3... exd5 {[%clk 0:02:54.2]} 4.
cxd5 {[%clk 0:03:04.3]} 4... d6 {[%clk 0:02:56.1]} 5. Nc3 {[%clk 0:03:05.7]}
5... g6 {[%clk 0:02:57.7]} 6. e4 {[%clk 0:03:07.4]} 6... Bg7 {[%clk 0:02:59.3]}
7. h3 {[%clk 0:03:09.1]} 7... a6 {[%clk 0:03:00.6]} 8. a4 {[%clk 0:03:09.2]}
8... Ne7 {[%clk 0:03:02.2]} 9. Bd3 {[%clk 0:02:58.4]} 9... h6 {[%clk 0:03:02.4]}
10. Nf3 {[%clk 0:02:51.3]} 10... g5 {[%clk 0:03:02.4]} 11. h4 {[%clk 0:02:36.7]}
11... g4 {[%clk 0:02:57.3]} 12. Nd2 {[%clk 0:02:24.9]} 12... h5 {[%clk
0:02:56.8]} 13. Nc4 {[%clk 0:02:24.5]} 13... Ng6 {[%clk 0:02:56.7]} 14. Bg5
{[%clk 0:01:39.6]} 14... f6 {[%clk 0:02:57]} 15. e5 {[%clk 0:01:31.2]} 15...
Nxe5 {[%clk 0:02:58.3]} 16. Nxe5 {[%clk 0:01:31.7]} 16... dxe5 {[%clk
0:03:00.2]} 17. Bg6+ {[%clk 0:01:32.2]} 17... Kf8 {[%clk 0:02:59]} 18. Be3
{[%clk 0:01:33]} 18... Nd7 {[%clk 0:02:53]} 19. d6 {[%clk 0:01:29]} 19... f5
{[%clk 0:02:32.1]} 20. Bg5 {[%clk 0:01:29.5]} 20... Nf6 {[%clk 0:02:32.9]} 21.
Nd5 {[%clk 0:01:11.4]} 21... Be6 {[%clk 0:02:31.3]} 22. Nc7 {[%clk 0:01:10.5]}
22... Bf7 {[%clk 0:02:28.3]} 23. Bxf7 {[%clk 0:01:08.3]} 23... Kxf7 {[%clk
0:02:30.2]} 24. Qb3+ {[%clk 0:01:05.3]} 24... Kg6 {[%clk 0:02:31]} 25. Nxa8
{[%clk 0:01:02.2]} 25... Qxa8 {[%clk 0:02:29.1]} 26. O-O {[%clk 0:00:58.7]}
26... Qc8 {[%clk 0:02:21.1]} 27. Rfd1 {[%clk 0:00:56.4]} 27... Rd8 {[%clk
0:02:18.4]} 28. a5 {[%clk 0:00:50]} 28... Rd7 {[%clk 0:02:08.7]} 29. Qe6 {[%clk
0:00:49.8]} 29... Qe8 {[%clk 0:02:09.8]} 30. Qc4 {[%clk 0:00:44.2]} 30... Ne4
{[%clk 0:02:08.6]} 31. Be7 {[%clk 0:00:36.2]} 31... Bf6 {[%clk 0:02:07.4]} 32.
Bxf6 {[%clk 0:00:36]} 32... Kxf6 {[%clk 0:02:07.7]} 33. b4 {[%clk 0:00:33.9]}
33... Qe6 {[%clk 0:01:58]} 34. Qc1 {[%clk 0:00:18.8]} 34... f4 {[%clk
0:01:46.8]} 35. bxc5 {[%clk 0:00:20]} 35... g3 {[%clk 0:01:48.3]} 36. f3 {[%clk
0:00:19.2]} 36... Nf2 {[%clk 0:01:49.1]} 37. Rf1 {[%clk 0:00:17.4]} 37... Qd5
{[%clk 0:01:42.1]} 38. Rxf2 {[%clk 0:00:15.1]} 38... gxf2+ {[%clk 0:01:44]} 39.
Kxf2 {[%clk 0:00:16.6]} 39... Qd4+ {[%clk 0:01:40.3]} 40. Kf1 {[%clk 0:00:17]}
40... Qd3+ {[%clk 0:01:37.2]} 41. Kg1 {[%clk 0:00:17.2]} 41... Rg7 {[%clk
0:01:39]} 42. Qd1 {[%clk 0:00:11.9]} 42... Qe3+ {[%clk 0:01:40.2]} 43. Kh1
{[%clk 0:00:12.5]} 43... Qf2 {[%clk 0:01:39.3]} 44. Qf1 {[%clk 0:00:11.4]} 44...
Qxh4+ {[%clk 0:01:39.9]} 45. Kg1 {[%clk 0:00:13]} 45... Qg5 {[%clk 0:01:33.4]}
46. d7 {[%clk 0:00:13.1]} 46... Rxd7 {[%clk 0:01:33.9]} 47. Rd1 {[%clk
0:00:12.4]} 47... Qf5 {[%clk 0:01:33.1]} 48. Rxd7 {[%clk 0:00:08.5]} 48... Qxd7
{[%clk 0:01:35]} 49. Qb1 {[%clk 0:00:08.7]} 49... Qb5 {[%clk 0:01:25.1]} 50. Qh7
{[%clk 0:00:08.8]} 50... Qxc5+ {[%clk 0:01:25.9]} 51. Kh2 {[%clk 0:00:09]} 51...
Qxa5 {[%clk 0:01:09.9]} 52. Qxb7 {[%clk 0:00:09.4]} 52... Qb5 {[%clk 0:01:09]}
53. Qh7 {[%clk 0:00:06.8]} 53... a5 {[%clk 0:01:09.1]} 54. Qh6+ {[%clk 0:00:08]}
54... Ke7 {[%clk 0:01:10.4]} 55. Qxh5 {[%clk 0:00:07.7]} 55... a4 {[%clk
0:01:11.8]} 56. Qh7+ {[%clk 0:00:08.3]} 56... Kd6 {[%clk 0:01:12.9]} 57. Qg6+
{[%clk 0:00:05.6]} 57... Kc5 {[%clk 0:01:12.5]} 58. Qc2+ {[%clk 0:00:06.7]}
58... Qc4 {[%clk 0:01:12.1]} 59. Qb2 {[%clk 0:00:06.7]} 59... Qd4 {[%clk
0:01:12.3]} 60. Qc2+ {[%clk 0:00:06.1]} 60... Kb4 {[%clk 0:01:13.1]} 61. Qb1+
{[%clk 0:00:06]} 61... Ka5 {[%clk 0:01:09.8]} 62. Qe1+ {[%clk 0:00:06.5]} 62...
Kb5 {[%clk 0:01:08.5]} 63. Qb1+ {[%clk 0:00:07.3]} 63... Qb4 {[%clk 0:01:09.7]}
64. Qf1+ {[%clk 0:00:08.1]} 64... Ka5 {[%clk 0:01:08.7]} 65. Qe2 {[%clk
0:00:09.7]} 65... Qc3 {[%clk 0:01:09]} 66. Qe4 {[%clk 0:00:07.5]} 66... a3
{[%clk 0:01:10]} 67. Kh3 {[%clk 0:00:06.6]} 67... Qd4 {[%clk 0:01:05.7]} 68.
Qa8+ {[%clk 0:00:05.6]} 68... Kb4 {[%clk 0:01:06.6]} 69. Qb7+ {[%clk 0:00:03.2]}
69... Kc3 {[%clk 0:01:07.7]} 70. Qb1 {[%clk 0:00:03.3]} 70... Qd2 {[%clk
0:01:04.1]} 71. Qa1+ {[%clk 0:00:02.2]} 71... Qb2 {[%clk 0:01:00.4]} 72. Qe1+
{[%clk 0:00:03]} 72... Kd4 {[%clk 0:01:02]} 73. Qe4+ {[%clk 0:00:03.7]} 73...
Kc5 {[%clk 0:01:02.5]} 0-1

[Event "*** Titled Tuesday 3|2 Blitz"]
[Site "Chess.com"]
[Date "2016.04.05"]
[Round "1"]
[White "platy3"]
[Black "D-Prawira"]
[Result "1-0"]
[WhiteElo "2510"]
[BlackElo "2205"]
[TimeControl "180+2"]
[EndTime "11:42:32 PDT"]
[Termination "platy3 won by checkmate"]

1. e4 {[%clk 0:03:01.9]} 1... e6 {[%clk 0:02:20.7]} 2. d4 {[%clk 0:03:00.8]}
2... d5 {[%clk 0:02:20.2]} 3. Nd2 {[%clk 0:03:01.9]} 3... Nc6 {[%clk 0:02:20]}
4. Ngf3 {[%clk 0:03:02.2]} 4... Nf6 {[%clk 0:02:20]} 5. e5 {[%clk 0:03:01.5]}
5... Nd7 {[%clk 0:02:19.4]} 6. c4 {[%clk 0:03:02.8]} 6... dxc4 {[%clk
0:02:15.2]} 7. Nxc4 {[%clk 0:03:02.4]} 7... Nb6 {[%clk 0:02:16]} 8. Nxb6 {[%clk
0:02:53.6]} 8... axb6 {[%clk 0:02:14.3]} 9. Bd3 {[%clk 0:02:45.4]} 9... Be7
{[%clk 0:02:05.7]} 10. O-O {[%clk 0:02:45.2]} 10... h6 {[%clk 0:01:59.2]} 11.
Be4 {[%clk 0:02:38.9]} 11... Ra5 {[%clk 0:01:48.9]} 12. Bd2 {[%clk 0:02:34.3]}
12... Ra7 {[%clk 0:01:43.7]} 13. Bc3 {[%clk 0:02:29.8]} 13... Nb4 {[%clk
0:01:37.8]} 14. Bxb4 {[%clk 0:02:28.1]} 14... Bxb4 {[%clk 0:01:36.7]} 15. Qb3
{[%clk 0:02:29.8]} 15... Be7 {[%clk 0:01:35.4]} 16. d5 {[%clk 0:02:24.4]} 16...
exd5 {[%clk 0:01:34.4]} 17. Bxd5 {[%clk 0:02:25.7]} 17... O-O {[%clk 0:01:34.8]}
18. Rfd1 {[%clk 0:02:25.9]} 18... Qe8 {[%clk 0:01:34.8]} 19. e6 {[%clk
0:02:08.5]} 19... fxe6 {[%clk 0:01:27.3]} 20. Bxe6+ {[%clk 0:02:10.1]} 20...
Bxe6 {[%clk 0:01:21.8]} 21. Qxe6+ {[%clk 0:02:11.5]} 21... Qf7 {[%clk 0:01:23]}
22. Qxf7+ {[%clk 0:01:53.4]} 22... Rxf7 {[%clk 0:01:12.6]} 23. a3 {[%clk
0:01:43.8]} 23... Bd6 {[%clk 0:01:08.3]} 24. Rac1 {[%clk 0:01:42.3]} 24... Ra8
{[%clk 0:01:02]} 25. Nd4 {[%clk 0:01:40.4]} 25... Be5 {[%clk 0:00:51.3]} 26. b4
{[%clk 0:00:39.1]} 26... Rxa3 {[%clk 0:00:39.7]} 27. Nf3 {[%clk 0:00:34.7]}
27... Bd6 {[%clk 0:00:38.9]} 28. Rc4 {[%clk 0:00:35.3]} 28... Rf4 {[%clk
0:00:35.5]} 29. Rxf4 {[%clk 0:00:21.6]} 29... Bxf4 {[%clk 0:00:37.4]} 30. Kf1
{[%clk 0:00:23.3]} 30... Rb3 {[%clk 0:00:35.7]} 31. Rd8+ {[%clk 0:00:20.2]}
31... Kh7 {[%clk 0:00:34.1]} 32. Rb8 {[%clk 0:00:20.2]} 32... Rxb4 {[%clk
0:00:32.2]} 33. Rxb7 {[%clk 0:00:21.5]} 33... Rb2 {[%clk 0:00:32.7]} 34. Nd4
{[%clk 0:00:17.7]} 34... Bd6 {[%clk 0:00:29.8]} 35. Ne6 {[%clk 0:00:18.4]} 35...
Rc2 {[%clk 0:00:28]} 36. h4 {[%clk 0:00:16.5]} 36... Kg6 {[%clk 0:00:27.9]} 37.
Nd4 {[%clk 0:00:17.1]} 37... Rc1+ {[%clk 0:00:26.8]} 38. Ke2 {[%clk 0:00:18.3]}
38... Bc5 {[%clk 0:00:27.7]} 39. Rxc7 {[%clk 0:00:17.7]} 39... Rh1 {[%clk
0:00:23.7]} 40. Rc6+ {[%clk 0:00:18.3]} 40... Kh7 {[%clk 0:00:23.6]} 41. Nf5
{[%clk 0:00:19]} 41... Ra1 {[%clk 0:00:20.1]} 42. f4 {[%clk 0:00:15.9]} 42...
Ra2+ {[%clk 0:00:20.7]} 43. Kf3 {[%clk 0:00:17.5]} 43... Rf2+ {[%clk 0:00:20.8]}
44. Kg3 {[%clk 0:00:19]} 44... Re2 {[%clk 0:00:19.9]} 45. Rc7 {[%clk 0:00:18.7]}
45... Bf8 {[%clk 0:00:18.8]} 46. Kf3 {[%clk 0:00:18.6]} 46... Rd2 {[%clk
0:00:18.4]} 47. g4 {[%clk 0:00:19.3]} 47... Kg8 {[%clk 0:00:18]} 48. h5 {[%clk
0:00:20.3]} 48... b5 {[%clk 0:00:18.8]} 49. Rb7 {[%clk 0:00:21.1]} 49... b4
{[%clk 0:00:20]} 50. Rb8 {[%clk 0:00:22.6]} 50... Kf7 {[%clk 0:00:20.3]} 51. Ke3
{[%clk 0:00:23.4]} 51... Rd7 {[%clk 0:00:19.8]} 52. Ke4 {[%clk 0:00:23.6]} 52...
Bc5 {[%clk 0:00:17.8]} 53. g5 {[%clk 0:00:23.6]} 53... hxg5 {[%clk 0:00:18.2]}
54. fxg5 {[%clk 0:00:25.3]} 54... Bf8 {[%clk 0:00:18.3]} 55. g6+ {[%clk
0:00:24.4]} 55... Kg8 {[%clk 0:00:18.2]} 56. Nd4 {[%clk 0:00:24.6]} 56... Re7+
{[%clk 0:00:17.4]} 57. Kf5 {[%clk 0:00:24.8]} 57... Re1 {[%clk 0:00:16]} 58. Ne6
{[%clk 0:00:21.7]} 58... Rf1+ {[%clk 0:00:16.6]} 59. Nf4 {[%clk 0:00:22]} 59...
Rf2 {[%clk 0:00:15.2]} 60. Kg4 {[%clk 0:00:22.2]} 60... Rf1 {[%clk 0:00:15.2]}
61. Kg3 {[%clk 0:00:23.1]} 61... Re1 {[%clk 0:00:15.6]} 62. Nd5 {[%clk
0:00:22.9]} 62... Re2 {[%clk 0:00:10]} 63. Kf4 {[%clk 0:00:21.3]} 63... Rf2+
{[%clk 0:00:10.5]} 64. Ke3 {[%clk 0:00:16.1]} 64... Rf5 {[%clk 0:00:09.8]} 65.
Ne7+ {[%clk 0:00:17]} 65... Kh8 {[%clk 0:00:10.2]} 66. Nxf5 {[%clk 0:00:18.3]}
66... b3 {[%clk 0:00:11.4]} 67. Rxf8# {[%clk 0:00:19.3]} 1-0

[Event "*** Titled Tuesday 3|2 Blitz"]
[Site "Chess.com"]
[Date "2016.04.05"]
[Round "1"]
[White "AnastasiaProtopopova"]
[Black "GianmarcoVaR"]
[Result "0-1"]
[WhiteElo "1915"]
[BlackElo "2374"]
[TimeControl "180+2"]
[EndTime "11:43:13 PDT"]
[Termination "GianmarcoVaR won by resignation"]

1. Nf3 {[%clk 0:03:01.8]} 1... Nf6 {[%clk 0:02:57.7]} 2. c4 {[%clk 0:03:02.1]}
2... b6 {[%clk 0:02:57.6]} 3. Nc3 {[%clk 0:02:53.9]} 3... Bb7 {[%clk 0:02:57.8]}
4. g3 {[%clk 0:02:53.9]} 4... c5 {[%clk 0:02:52.6]} 5. Bg2 {[%clk 0:02:54.7]}
5... g6 {[%clk 0:02:52.7]} 6. O-O {[%clk 0:02:56]} 6... Bg7 {[%clk 0:02:53.1]}
7. d4 {[%clk 0:02:57.5]} 7... cxd4 {[%clk 0:02:52.1]} 8. Qxd4 {[%clk 0:02:56.5]}
8... Nc6 {[%clk 0:02:52.7]} 9. Qh4 {[%clk 0:02:55]} 9... h6 {[%clk 0:02:52]} 10.
g4 {[%clk 0:02:47.3]} 10... Rc8 {[%clk 0:02:42.6]} 11. Be3 {[%clk 0:02:17.1]}
11... Na5 {[%clk 0:02:33.1]} 12. b3 {[%clk 0:02:14.6]} 12... h5 {[%clk
0:02:30.5]} 13. g5 {[%clk 0:02:08]} 13... Ng4 {[%clk 0:02:30.8]} 14. Bd2 {[%clk
0:01:56.8]} 14... Qc7 {[%clk 0:02:12.9]} 15. Qg3 {[%clk 0:01:49.8]} 15... Qxg3
{[%clk 0:02:05.5]} 16. fxg3 {[%clk 0:01:33.5]} 16... d6 {[%clk 0:01:03.8]} 17.
h3 {[%clk 0:01:14.4]} 17... Ne5 {[%clk 0:01:00.8]} 18. Nxe5 {[%clk 0:01:14.2]}
18... Bxe5 {[%clk 0:01:01]} 19. Bxb7 {[%clk 0:01:07.5]} 19... Nxb7 {[%clk
0:00:58.5]} 20. Kg2 {[%clk 0:01:07.7]} 20... b5 {[%clk 0:00:59]} 21. Rac1 {[%clk
0:00:42.6]} 21... bxc4 {[%clk 0:00:56.8]} 22. Na4 {[%clk 0:00:29.6]} 22... Kd7
{[%clk 0:00:38.1]} 23. bxc4 {[%clk 0:00:25]} 23... Nc5 {[%clk 0:00:33.1]} 24.
Nxc5+ {[%clk 0:00:22.3]} 24... Rxc5 {[%clk 0:00:34.6]} 25. Bb4 {[%clk
0:00:20.4]} 25... Rc6 {[%clk 0:00:32.5]} 26. c5 {[%clk 0:00:21.3]} 26... Rhc8
{[%clk 0:00:31.2]} 27. Rxf7 {[%clk 0:00:20]} 27... dxc5 {[%clk 0:00:31.2]} 28.
Bd2 {[%clk 0:00:19.3]} 28... c4 {[%clk 0:00:30.7]} 29. Bc3 {[%clk 0:00:19.7]}
29... Ke6 {[%clk 0:00:30.5]} 30. Rh7 {[%clk 0:00:18.2]} 30... Rc5 {[%clk
0:00:27.8]} 31. Bxe5 {[%clk 0:00:16.7]} 31... Rxe5 {[%clk 0:00:28.1]} 32. Rh6
{[%clk 0:00:16.9]} 32... Rxg5 {[%clk 0:00:28.5]} 33. h4 {[%clk 0:00:16.9]} 33...
Rg4 {[%clk 0:00:29.1]} 34. Kf3 {[%clk 0:00:17.1]} 34... c3 {[%clk 0:00:29.8]}
35. Rc2 {[%clk 0:00:17.3]} 35... Kf6 {[%clk 0:00:29.6]} 36. Rh7 {[%clk
0:00:17.1]} 36... a5 {[%clk 0:00:26.4]} 37. e4 {[%clk 0:00:17.7]} 37... Ke6
{[%clk 0:00:21.4]} 38. Rg7 {[%clk 0:00:16.5]} 38... Kf6 {[%clk 0:00:21.4]} 39.
Rh7 {[%clk 0:00:16.6]} 39... Rc4 {[%clk 0:00:21.2]} 40. Rh8 {[%clk 0:00:17]}
40... Rgxe4 {[%clk 0:00:20.4]} 41. Rf8+ {[%clk 0:00:17]} 41... Kg7 {[%clk
0:00:21.3]} 42. Ra8 {[%clk 0:00:17.5]} 42... Re5 {[%clk 0:00:21.2]} 43. Rd8
{[%clk 0:00:16.6]} 43... Kf7 {[%clk 0:00:21.2]} 44. Rd3 {[%clk 0:00:17.1]} 44...
Rec5 {[%clk 0:00:21.7]} 45. Ke2 {[%clk 0:00:17]} 45... e5 {[%clk 0:00:22]} 46.
Rd7+ {[%clk 0:00:17.3]} 46... Ke6 {[%clk 0:00:22.7]} 47. Rg7 {[%clk 0:00:17.8]}
47... Rg4 {[%clk 0:00:22.8]} 48. Kf3 {[%clk 0:00:17.6]} 48... e4+ {[%clk
0:00:23.3]} 49. Kg2 {[%clk 0:00:19]} 49... Ke5 {[%clk 0:00:20.5]} 50. Re7+
{[%clk 0:00:19.6]} 50... Kd4 {[%clk 0:00:20.6]} 51. Kf2 {[%clk 0:00:19.4]} 51...
Kd3 {[%clk 0:00:18.4]} 52. Rc1 {[%clk 0:00:19.8]} 52... c2 {[%clk 0:00:19.3]}
53. Rd7+ {[%clk 0:00:20.3]} 53... Kc3 {[%clk 0:00:20.2]} 54. Re7 {[%clk
0:00:17.9]} 54... Kd2 {[%clk 0:00:19.8]} 55. Re1 {[%clk 0:00:17.4]} 55... Rf5+
{[%clk 0:00:18.8]} 56. Kg2 {[%clk 0:00:16.7]} 56... Kxe1 {[%clk 0:00:19.6]} 57.
Rc7 {[%clk 0:00:17.3]} 57... Rf2+ {[%clk 0:00:19]} 58. Kh3 {[%clk 0:00:17.4]}
58... Kd2 {[%clk 0:00:13.4]} 59. a4 {[%clk 0:00:17.7]} 59... Rf3 {[%clk
0:00:13.9]} 60. Kh2 {[%clk 0:00:17.1]} 60... c1=Q {[%clk 0:00:13.5]} 61. Rxc1
{[%clk 0:00:17.1]} 61... Kxc1 {[%clk 0:00:14]} 62. Kh3 {[%clk 0:00:18.1]} 62...
Rfxg3+ {[%clk 0:00:14.5]} 63. Kh2 {[%clk 0:00:19.7]} 63... Kd2 {[%clk
0:00:15.5]} 0-1

[Event "*** Titled Tuesday 3|2 Blitz"]
[Site "Chess.com"]
[Date "2016.04.05"]
[Round "1"]
[White "arna"]
[Black "biostatistician"]
[Result "1/2-1/2"]
[WhiteElo "2123"]
[BlackElo "2402"]
[TimeControl "180+2"]
[EndTime "11:43:54 PDT"]
[Termination "Game drawn by repetition"]

1. e4 {[%clk 0:02:53.4]} 1... e6 {[%clk 0:03:00.7]} 2. d4 {[%clk 0:02:52.9]}
2... d5 {[%clk 0:03:02.6]} 3. Nd2 {[%clk 0:02:51.4]} 3... Nc6 {[%clk 0:03:03.2]}
4. Ngf3 {[%clk 0:02:43.2]} 4... Nf6 {[%clk 0:03:04.2]} 5. e5 {[%clk 0:02:44.3]}
5... Ne4 {[%clk 0:03:05]} 6. Bd3 {[%clk 0:02:33.6]} 6... Nxd2 {[%clk 0:03:05.9]}
7. Bxd2 {[%clk 0:02:31.5]} 7... Nb4 {[%clk 0:03:07.8]} 8. Be2 {[%clk 0:02:30.4]}
8... c5 {[%clk 0:03:07.8]} 9. Bxb4 {[%clk 0:02:24.5]} 9... cxb4 {[%clk
0:03:09.7]} 10. O-O {[%clk 0:02:16.7]} 10... Bd7 {[%clk 0:03:10.5]} 11. Bd3
{[%clk 0:02:13.6]} 11... Qb6 {[%clk 0:03:10.3]} 12. Qe2 {[%clk 0:02:14.7]} 12...
a6 {[%clk 0:03:09.5]} 13. Rfd1 {[%clk 0:01:58.8]} 13... Bb5 {[%clk 0:03:08.6]}
14. Bxb5+ {[%clk 0:01:56.7]} 14... Qxb5 {[%clk 0:03:10.5]} 15. Qxb5+ {[%clk
0:01:57.3]} 15... axb5 {[%clk 0:03:12.4]} 16. Nd2 {[%clk 0:01:49.3]} 16... Kd7
{[%clk 0:03:11.7]} 17. Nb3 {[%clk 0:01:49]} 17... b6 {[%clk 0:03:09.6]} 18. Kf1
{[%clk 0:01:37.2]} 18... Be7 {[%clk 0:03:09.6]} 19. Ke2 {[%clk 0:01:36.4]} 19...
Ra4 {[%clk 0:03:05.8]} 20. f4 {[%clk 0:01:32.8]} 20... Rha8 {[%clk 0:03:05.9]}
21. Nc1 {[%clk 0:01:30.3]} 21... Rc8 {[%clk 0:03:06.2]} 22. Kd3 {[%clk
0:01:29.6]} 22... Ra7 {[%clk 0:03:05]} 23. Nb3 {[%clk 0:01:26.4]} 23... Rca8
{[%clk 0:02:59.4]} 24. Nc1 {[%clk 0:01:27.2]} 24... f6 {[%clk 0:02:59]} 25. Rf1
{[%clk 0:01:14.9]} 25... f5 {[%clk 0:02:49.6]} 26. h3 {[%clk 0:01:02.9]} 26...
g5 {[%clk 0:02:50.2]} 27. g4 {[%clk 0:01:03.5]} 27... fxg4 {[%clk 0:02:33.2]}
28. hxg4 {[%clk 0:01:01.7]} 28... gxf4 {[%clk 0:02:32.3]} 29. Rxf4 {[%clk
0:01:01.9]} 29... Rf8 {[%clk 0:02:32.9]} 30. Rxf8 {[%clk 0:00:52.1]} 30... Bxf8
{[%clk 0:02:34.8]} 31. Ne2 {[%clk 0:00:52.2]} 31... Ke8 {[%clk 0:02:17.6]} 32.
Nf4 {[%clk 0:00:49.9]} 32... Kf7 {[%clk 0:02:18.4]} 33. Rf1 {[%clk 0:00:41.5]}
33... Ke7 {[%clk 0:02:19.5]} 34. Nxe6 {[%clk 0:00:31]} 34... Kxe6 {[%clk
0:02:13.5]} 35. Rxf8 {[%clk 0:00:31.2]} 35... Rxa2 {[%clk 0:02:15.1]} 36. b3
{[%clk 0:00:20.5]} 36... Ra1 {[%clk 0:02:11]} 37. Rf6+ {[%clk 0:00:20.3]} 37...
Ke7 {[%clk 0:02:12]} 38. Rxb6 {[%clk 0:00:22.2]} 38... Rg1 {[%clk 0:02:13.1]}
39. Rb7+ {[%clk 0:00:19.7]} 39... Ke6 {[%clk 0:02:13.4]} 40. Rxh7 {[%clk
0:00:21.6]} 40... Rg3+ {[%clk 0:02:13.8]} 41. Kd2 {[%clk 0:00:22.5]} 41... Rxg4
{[%clk 0:02:15.7]} 42. Rh6+ {[%clk 0:00:22.2]} 42... Ke7 {[%clk 0:02:15.6]} 43.
Ke3 {[%clk 0:00:19.7]} 43... Rg2 {[%clk 0:02:07.4]} 44. Rc6 {[%clk 0:00:19.5]}
44... Rg3+ {[%clk 0:01:53.3]} 45. Kf4 {[%clk 0:00:19]} 45... Rg2 {[%clk
0:01:54.4]} 46. Rc5 {[%clk 0:00:14.9]} 46... Ke6 {[%clk 0:01:54.3]} 47. Rc6+
{[%clk 0:00:13.1]} 47... Ke7 {[%clk 0:01:54.8]} 48. Rc7+ {[%clk 0:00:12.4]}
48... Ke6 {[%clk 0:01:55.5]} 49. Rc6+ {[%clk 0:00:13.6]} 49... Ke7 {[%clk
0:01:56.7]} 50. Rc5 {[%clk 0:00:13.3]} 50... Ke6 {[%clk 0:01:57.8]} 51. Rxb5
{[%clk 0:00:04.7]} 51... Rxc2 {[%clk 0:01:57.7]} 52. Rxb4 {[%clk 0:00:05.8]}
52... Re2 {[%clk 0:01:57.5]} 53. Kf3 {[%clk 0:00:06.8]} 53... Re4 {[%clk
0:01:56.9]} 54. Rb6+ {[%clk 0:00:06.1]} 54... Ke7 {[%clk 0:01:56.3]} 55. Rb4
{[%clk 0:00:06.9]} 55... Kd7 {[%clk 0:01:48.8]} 56. Rb7+ {[%clk 0:00:04.9]}
56... Kc6 {[%clk 0:01:49]} 57. Re7 {[%clk 0:00:04.9]} 57... Rxd4 {[%clk
0:01:48.9]} 58. Ke3 {[%clk 0:00:04.3]} 58... Rb4 {[%clk 0:01:45.8]} 59. e6
{[%clk 0:00:05.7]} 59... Kd6 {[%clk 0:01:44.1]} 60. Re8 {[%clk 0:00:06.1]} 60...
Rxb3+ {[%clk 0:01:45.2]} 61. Kf4 {[%clk 0:00:07.3]} 61... Rb4+ {[%clk
0:01:44.7]} 62. Kf5 {[%clk 0:00:08]} 62... Re4 {[%clk 0:01:43.2]} 63. Rd8+
{[%clk 0:00:05.7]} 63... Ke7 {[%clk 0:01:44.3]} 64. Rd7+ {[%clk 0:00:06.4]}
64... Ke8 {[%clk 0:01:44.2]} 65. Kf6 {[%clk 0:00:05.6]} 65... d4 {[%clk
0:01:39.5]} 66. Ra7 {[%clk 0:00:04.2]} 66... Rf4+ {[%clk 0:01:40.3]} 67. Ke5
{[%clk 0:00:04.9]} 67... Rf1 {[%clk 0:01:00.2]} 68. Ra8+ {[%clk 0:00:05.3]}
68... Ke7 {[%clk 0:01:00.9]} 69. Ra7+ {[%clk 0:00:06.9]} 69... Kf8 {[%clk
0:00:58.4]} 70. Kd6 {[%clk 0:00:08.8]} 70... Re1 {[%clk 0:00:58.4]} 71. Ra8+
{[%clk 0:00:09.2]} 71... Kg7 {[%clk 0:00:58.4]} 72. e7 {[%clk 0:00:10.4]} 72...
d3 {[%clk 0:00:56.7]} 73. Ra3 {[%clk 0:00:05.7]} 73... d2 {[%clk 0:00:55.9]} 74.
Rg3+ {[%clk 0:00:03.8]} 74... Kf7 {[%clk 0:00:55.5]} 75. Rf3+ {[%clk 0:00:05.1]}
75... Kg7 {[%clk 0:00:56.9]} 76. Rg3+ {[%clk 0:00:04.1]} 76... Kf6 {[%clk
0:00:58]} 77. Rf3+ {[%clk 0:00:05.2]} 77... Kg5 {[%clk 0:00:58.1]} 78. Rg3+
{[%clk 0:00:04.8]} 78... Kf4 {[%clk 0:00:58.7]} 79. Rd3 {[%clk 0:00:05.1]} 79...
d1=Q {[%clk 0:00:59.8]} 80. Rxd1 {[%clk 0:00:05.7]} 80... Rxd1+ {[%clk
0:01:01.7]} 81. Kc7 {[%clk 0:00:06.9]} 81... Re1 {[%clk 0:01:03]} 82. Kd8 {[%clk
0:00:07.8]} 82... Rd1+ {[%clk 0:01:03.2]} 83. Kc8 {[%clk 0:00:08.7]} 83... Rc1+
{[%clk 0:01:04.5]} 84. Kd8 {[%clk 0:00:09.7]} 84... Rd1+ {[%clk 0:01:05.8]} 85.
Kc8 {[%clk 0:00:10.9]} 85... Re1 {[%clk 0:01:06.4]} 86. Kd8 {[%clk 0:00:11.9]}
86... Rd1+ {[%clk 0:01:06.1]} 87. Kc8 {[%clk 0:00:12.7]} 87... Re1 {[%clk
0:01:07.5]} 88. Kd8 {[%clk 0:00:13]} 1/2-1/2